[Event "RUS-ch Girls U21 2021"]
[Site "Loo"]
[Date "2021.04.27"]
[Round "7.5"]
[White "Shvedova, Alexandra"]
[Black "Garmash, Aliona"]
[Result "0-1"]
[ECO "B90"]
[WhiteElo "2000"]
[BlackElo "2120"]
[Annotator "NA"]
[PlyCount "116"]
[EventDate "2021.04.21"]
[EventType "swiss"]
[EventCountry "RUS"]
[SourceTitle "playchess.com"]
[Source "ChessBase"]
[SourceQuality "1"]
[TimeControl "40/5400+30:1800+30"]

1. e4 {[%emt 0:00:00]} c5 {[%emt 0:00:00]} 2. Nf3 {[%emt 0:00:00]} d6 {[%emt 0:00:00]} 3. d4 {[%emt 0:00:01]} cxd4 {[%emt 0:00:00]} 4. Nxd4 {[%emt 0:00:05]} Nf6 {[%emt 0:00:00]} 5. Nc3 {[%emt 0:00:05]} a6 {[%emt 0:00:01]} 6. Be3 {[%emt 0:00:47]} e5 {[%emt 0:00:07]} 7. Nf3 {[%emt 0:00:37]} Qc7 {[%emt 0:00:20]} 8. Bg5 {[%emt 0:03:09]} Nbd7 {[%emt 0:00:18]} 9. a4 {[%emt 0:06:10]} h6 {[%emt 0:01:23]} 10. Bh4 {[%emt 0:01:43]} g5 {[%emt 0:05:42]} 11. Bg3 {[%emt 0:00:10]} Qb6 {[%emt 0:01:38]} 12. Rb1 {[%emt 0:08:44]} Qc6 {[%emt 0:01:17]} 13. Nd2 {[%emt 0:03:35]} Nc5 {[%emt 0:02:14]} 14. Bc4 {[%emt 0:11:19]} Nxa4 {[%emt 0:14:09]} 15. Qf3 {[%emt 0:01:07]} Bg7 {[%emt 0:01:34]} 16. Nd5 {[%emt 0:02:47]} Nxd5 {[%emt 0:04:29]} 17. Bxd5 {[%emt 0:00:07]} Qc7 {[%emt 0:01:37]} 18. Nc4 {[%emt 0:00:32]} O-O {[%emt 0:04:00]} 19. Ne3 {[%emt 0:01:28]} Nxb2 {[%emt 0:10:01]} 20. O-O {[%emt 0:01:58]} Na4 {[%emt 0:00:08]} 21. Bb3 {[%emt 0:32:46]} Nc3 {[%emt 0:04:39]} 22. Ra1 {[%emt 0:00:53]} Qc6 {[%emt 0:11:47]} 23. Nd5 {[%emt 0:02:15]} Nxd5 {[%emt 0:00:08]} 24. Bxd5 {[%emt 0:00:06]} Qc5 {[%emt 0:05:50]} 25. Qh5 {[%emt 0:01:56]} Rb8 {[%emt 0:06:57]} 26. h4 {[%emt 0:02:15]} g4 {[%emt 0:02:24]} 27. Kh2 {[%emt 0:01:21]} Qc7 {[%emt 0:01:55]} 28. f3 {[%emt 0:00:39]} gxf3 {[%emt 0:00:38]} 29. Rxf3 {[%emt 0:00:21]} Be6 {[%emt 0:00:56]} 30. Raf1 {[%emt 0:00:29]} Bxd5 {[%emt 0:05:52]} 31. exd5 {[%emt 0:00:06]} Qxc2 {[%emt 0:05:54]} 32. Rxf7 {[%emt 0:00:46]} Qe4 {[%emt 0:00:49]} 33. Re1 {[%emt 0:08:49]} Qxd5 {[%emt 0:01:19]} 34. Rc7 {[%emt 0:00:07]} Qe6 {[%emt 0:02:21]} 35. Re4 {[%emt 0:02:35]} Rf7 {[%emt 0:00:38]} 36. Rec4 {[%emt 0:01:30]} b5 {[%emt 0:01:33]} 37. R4c6 {[%emt 0:00:18]} Rxc7 {[%emt 0:00:06]} 38. Rxc7 {[%emt 0:00:05]} b4 {[%emt 0:00:34]} 39. Qe2 {[%emt 0:00:15]} b3 {[%emt 0:01:31]} 40. Qxa6 {[%emt 0:00:00]} Bf8 {[%emt 0:00:00]} 41. Qa7 {[%emt 0:03:56]} Rb5 {[%emt 0:10:08]} 42. Qa6 {[%emt 0:01:04]} Qd5 {[%emt 0:01:26]} 43. Qc8 {[%emt 0:01:16]} b2 {[%emt 0:02:29]} 44. Qg4+ {[%emt 0:00:06]} Kh8 {[%emt 0:00:04]} 45. Qg6 {[%emt 0:00:06]} Qg8 {[%emt 0:00:30]} 46. Qb1 {[%emt 0:00:10]} Bg7 {[%emt 0:01:02]} 47. Rc2 {[%emt 0:00:34]} Qb8 {[%emt 0:01:20]} 48. Rf2 {[%emt 0:00:45]} Rb7 {[%emt 0:00:59]} 49. Rd2 {[%emt 0:00:29]} Rb3 {[%emt 0:02:13]} 50. Rf2 {[%emt 0:02:02]} Qb4 {[%emt 0:02:44]} 51. Rf7 {[%emt 0:00:38]} Qg4 {[%emt 0:02:36]} 52. Be1 {[%emt 0:00:56]} e4 {[%emt 0:00:26]} 53. Ra7 {[%emt 0:00:26]} Be5+ {[%emt 0:00:42]} 54. Kh1 {[%emt 0:00:12]} Rh3+ {[%emt 0:03:26]} 55. gxh3 {[%emt 0:01:09]} Qxh3+ {[%emt 0:00:06]} 56. Kg1 {[%emt 0:00:04]} Bd4+ {[%emt 0:00:06]} 57. Bf2 {[%emt 0:00:04]} Qg3+ {[%emt 0:00:04]} 58. Kh1 {[%emt 0:00:04]} Qf3+ {[%emt 0:00:05]} 0-1

[Event "RUS-ch Girls U21 2021"]
[Site "Loo"]
[Date "2021.04.27"]
[Round "7.6"]
[White "Badmaeva, Baina"]
[Black "Stroganova, Karina"]
[Result "0-1"]
[ECO "B06"]
[WhiteElo "1751"]
[BlackElo "1731"]
[Annotator "NA"]
[PlyCount "80"]
[EventDate "2021.04.21"]
[EventType "swiss"]
[EventCountry "RUS"]
[SourceTitle "playchess.com"]
[Source "ChessBase"]
[SourceQuality "1"]
[TimeControl "40/5400+30:1800+30"]

1. e4 {[%emt 0:00:00]} g6 {[%emt 0:00:00]} 2. d4 {[%emt 0:00:00]} d6 {[%emt 0:00:00]} 3. Nc3 {[%emt 0:01:30]} Bg7 {[%emt 0:00:01]} 4. Bc4 {[%emt 0:00:36]} e6 {[%emt 0:00:19]} 5. Be3 {[%emt 0:00:36]} a6 {[%emt 0:00:50]} 6. a4 {[%emt 0:02:46]} Nd7 {[%emt 0:01:14]} 7. Nf3 {[%emt 0:01:43]} b6 {[%emt 0:00:26]} 8. O-O {[%emt 0:13:43]} Bb7 {[%emt 0:05:22]} 9. Qd2 {[%emt 0:04:00]} Ngf6 {[%emt 0:01:33]} 10. e5 {[%emt 0:13:39]} dxe5 {[%emt 0:02:26]} 11. Nxe5 {[%emt 0:01:32]} Nxe5 {[%emt 0:01:58]} 12. dxe5 {[%emt 0:00:09]} Ng4 {[%emt 0:02:32]} 13. f4 {[%emt 0:08:24]} Qh4 {[%emt 0:05:47]} 14. h3 {[%emt 0:03:50]} Nxe5 {[%emt 0:04:13]} 15. fxe5 {[%emt 0:20:53]} Qxc4 {[%emt 0:00:33]} 16. Rf4 {[%emt 0:00:12]} Qc6 {[%emt 0:00:39]} 17. Raf1 {[%emt 0:01:12]} O-O {[%emt 0:10:41]} 18. Ne4 {[%emt 0:05:52]} Bxe5 {[%emt 0:01:43]} 19. Nf6+ Kg7 {[%emt 0:10:56]} 20. Rh4 {[%emt 0:02:42]} Bxf6 {[%emt 0:00:25]} 21. Bh6+ {[%emt 0:00:48]} Kg8 22. Rxf6 {[%emt 0:04:19]} Rfd8 {[%emt 0:04:13]} 23. Qf2 Rd1+ {[%emt 0:15:40]} 24. Kh2 {[%emt 0:00:35]} Qd6+ {[%emt 0:06:44]} 25. Bf4 {[%emt 0:05:09]} Qd5 {[%emt 0:03:57]} 26. Be3 {[%emt 0:00:14]} Qe5+ {[%emt 0:06:08]} 27. Rhf4 {[%emt 0:00:11]} Rf8 {[%emt 0:00:43]} 28. Bd4 Qd6 29. h4 {[%emt 0:01:14]} c5 {[%emt 0:02:45]} 30. Bc3 {[%emt 0:00:51]} Qc7 {[%emt 0:02:07]} 31. h5 {[%emt 0:01:38]} Rd5 {[%emt 0:02:21]} 32. hxg6 {[%emt 0:01:08]} hxg6 {[%emt 0:00:08]} 33. Kh3 {[%emt 0:01:45]} Rg5 {[%emt 0:02:49]} 34. g3 {[%emt 0:02:29]} Qc6 {[%emt 0:02:44]} 35. Rf3 {[%emt 0:00:56]} Rh5+ {[%emt 0:00:36]} 36. Kg4 {[%emt 0:00:13]} Rf5 {[%emt 0:01:48]} 37. Rf4 {[%emt 0:01:32]} Qh1 {[%emt 0:00:27]} 38. R4xf5 {[%emt 0:00:43]} exf5+ {[%emt 0:00:34]} 39. Kf4 {[%emt 0:00:10]} Qe4+ {[%emt 0:00:09]} 40. Kg5 {[%emt 0:00:00]} Qg4+ {[%emt 0:00:00]} 0-1

[Event "RUS-ch Girls U21 2021"]
[Site "Loo"]
[Date "2021.04.27"]
[Round "7.7"]
[White "Shafigullina, Zarina"]
[Black "Pankova, Julia"]
[Result "1-0"]
[ECO "E06"]
[WhiteElo "2293"]
[BlackElo "1884"]
[Annotator "NA"]
[PlyCount "87"]
[EventDate "2021.04.21"]
[EventType "swiss"]
[EventCountry "RUS"]
[SourceTitle "playchess.com"]
[Source "ChessBase"]
[SourceQuality "1"]
[TimeControl "40/5400+30:1800+30"]

1. d4 {[%emt 0:00:00]} Nf6 {[%emt 0:00:00]} 2. c4 {[%emt 0:00:00]} e6 {[%emt 0:00:00]} 3. g3 {[%emt 0:00:00]} d5 {[%emt 0:00:00]} 4. Nf3 {[%emt 0:00:00]} Be7 {[%emt 0:00:00]} 5. Bg2 {[%emt 0:00:01]} O-O {[%emt 0:00:00]} 6. O-O {[%emt 0:00:11]} dxc4 {[%emt 0:00:04]} 7. Qc2 {[%emt 0:00:03]} b5 {[%emt 0:00:06]} 8. a4 {[%emt 0:01:49]} b4 {[%emt 0:00:06]} 9. Qxc4 {[%emt 0:04:05]} Ba6 {[%emt 0:00:19]} 10. Qc2 {[%emt 0:00:05]} Nbd7 {[%emt 0:01:02]} 11. Rd1 {[%emt 0:02:36]} Rc8 {[%emt 0:02:10]} 12. Ne5 {[%emt 0:01:57]} c5 {[%emt 0:09:24]} 13. Nc6 {[%emt 0:22:45]} Qe8 {[%emt 0:03:23]} 14. Nxa7 {[%emt 0:01:48]} Rc7 {[%emt 0:01:52]} 15. Nc6 {[%emt 0:05:52]} Bd6 {[%emt 0:20:52]} 16. Bf4 {[%emt 0:08:53]} Bxf4 {[%emt 0:08:42]} 17. gxf4 {[%emt 0:00:04]} Nd5 {[%emt 0:05:20]} 18. Bxd5 {[%emt 0:04:12]} exd5 {[%emt 0:00:04]} 19. Nxb4 {[%emt 0:03:08]} cxb4 {[%emt 0:07:25]} 20. Qxc7 {[%emt 0:00:27]} Qxe2 {[%emt 0:00:11]} 21. Nd2 {[%emt 0:02:30]} Nf6 {[%emt 0:05:02]} 22. Qe5 {[%emt 0:04:29]} Ne4 {[%emt 0:06:06]} 23. Nxe4 {[%emt 0:02:27]} dxe4 {[%emt 0:00:04]} 24. f5 {[%emt 0:02:33]} Qg4+ {[%emt 0:01:09]} 25. Qg3 {[%emt 0:00:06]} Qxf5 {[%emt 0:00:07]} 26. Rac1 {[%emt 0:01:24]} Qh5 {[%emt 0:07:29]} 27. h3 {[%emt 0:05:49]} f5 {[%emt 0:07:35]} 28. Kh2 {[%emt 0:01:19]} f4 {[%emt 0:03:18]} 29. Qg4 {[%emt 0:00:50]} Qf7 {[%emt 0:00:36]} 30. d5 {[%emt 0:07:03]} Qa7 {[%emt 0:04:27]} 31. Qe6+ {[%emt 0:02:22]} Kh8 {[%emt 0:00:06]} 32. Qxe4 {[%emt 0:00:16]} Qxf2+ {[%emt 0:00:13]} 33. Qg2 {[%emt 0:00:03]} Qh4 {[%emt 0:05:21]} 34. Rg1 {[%emt 0:06:23]} g6 {[%emt 0:01:19]} 35. Qf3 {[%emt 0:04:27]} Qe7 {[%emt 0:02:13]} 36. Rge1 {[%emt 0:02:03]} Qf6 {[%emt 0:00:19]} 37. Rc2 {[%emt 0:00:11]} Qf5 {[%emt 0:01:17]} 38. Rd2 {[%emt 0:00:26]} Bc8 {[%emt 0:00:44]} 39. Re7 {[%emt 0:00:46]} Bd7 {[%emt 0:00:32]} 40. Qd3 {[%emt 0:00:00]} f3 {[%emt 0:00:00]} 41. Qxf5 {[%emt 0:04:37]} Rxf5 {[%emt 0:01:26]} 42. Kg3 {[%emt 0:02:35]} Bxa4 {[%emt 0:04:03]} 43. d6 {[%emt 0:00:16]} Rf8 {[%emt 0:00:34]} 44. d7 {[%emt 0:01:33]} 1-0

[Event "RUS-ch Girls U21 2021"]
[Site "Loo"]
[Date "2021.04.27"]
[Round "7.8"]
[White "Kochukova, Anna"]
[Black "Koroleva, Evgeniya"]
[Result "1/2-1/2"]
[ECO "B40"]
[WhiteElo "2108"]
[BlackElo "1884"]
[Annotator "NA"]
[PlyCount "82"]
[EventDate "2021.04.21"]
[EventType "swiss"]
[EventCountry "RUS"]
[SourceTitle "playchess.com"]
[Source "ChessBase"]
[SourceQuality "1"]
[TimeControl "40/5400+30:1800+30"]

1. e4 {[%emt 0:00:23]} c5 {[%emt 0:00:00]} 2. Nf3 {[%emt 0:00:40]} e6 {[%emt 0:00:00]} 3. d4 {[%emt 0:00:12]} cxd4 {[%emt 0:00:06]} 4. Nxd4 {[%emt 0:00:02]} Nf6 {[%emt 0:00:09]} 5. Nc3 {[%emt 0:01:32]} Nc6 {[%emt 0:00:07]} 6. Ndb5 {[%emt 0:02:00]} Bb4 {[%emt 0:00:09]} 7. a3 {[%emt 0:01:59]} Bxc3+ {[%emt 0:00:07]} 8. Nxc3 {[%emt 0:00:08]} d5 {[%emt 0:00:07]} 9. exd5 {[%emt 0:01:37]} exd5 {[%emt 0:00:07]} 10. Bd3 {[%emt 0:01:28]} O-O {[%emt 0:00:08]} 11. O-O {[%emt 0:00:09]} d4 {[%emt 0:00:04]} 12. Ne4 {[%emt 0:01:05]} Bf5 {[%emt 0:00:33]} 13. Bg5 {[%emt 0:03:47]} Bxe4 {[%emt 0:00:09]} 14. Bxe4 {[%emt 0:01:46]} h6 {[%emt 0:00:07]} 15. Bh4 {[%emt 0:06:13]} g5 {[%emt 0:00:08]} 16. Bxc6 {[%emt 0:00:17]} bxc6 {[%emt 0:00:07]} 17. Bg3 {[%emt 0:00:08]} Qd5 {[%emt 0:01:18]} 18. Re1 {[%emt 0:05:52]} Rfe8 {[%emt 0:05:07]} 19. Qd3 {[%emt 0:04:09]} Rad8 {[%emt 0:02:40]} 20. h4 {[%emt 0:05:31]} Kg7 {[%emt 0:05:07]} 21. Rad1 {[%emt 0:05:39]} c5 {[%emt 0:04:58]} 22. b3 {[%emt 0:02:49]} Re6 {[%emt 0:08:10]} 23. Rxe6 {[%emt 0:04:17]} Qxe6 {[%emt 0:00:15]} 24. Qb5 {[%emt 0:00:19]} Qf5 {[%emt 0:16:18]} 25. Qd3 {[%emt 0:12:14]} Qe6 {[%emt 0:01:01]} 26. f3 {[%emt 0:17:32]} Re8 {[%emt 0:07:10]} 27. hxg5 {[%emt 0:03:09]} hxg5 {[%emt 0:00:21]} 28. Re1 {[%emt 0:00:07]} Qd5 {[%emt 0:00:10]} 29. Rxe8 {[%emt 0:00:50]} Nxe8 {[%emt 0:00:07]} 30. Qe2 {[%emt 0:01:02]} Nf6 {[%emt 0:03:06]} 31. Qe7 {[%emt 0:02:03]} Nd7 {[%emt 0:08:24]} 32. Bd6 {[%emt 0:01:00]} Qf5 {[%emt 0:02:02]} 33. Qe4 {[%emt 0:11:36]} Qxe4 {[%emt 0:06:52]} 34. fxe4 {[%emt 0:00:01]} Kf6 {[%emt 0:00:07]} 35. Kf2 {[%emt 0:01:33]} Ke6 {[%emt 0:00:07]} 36. Bc7 {[%emt 0:00:32]} f5 {[%emt 0:00:39]} 37. exf5+ {[%emt 0:00:33]} Kxf5 {[%emt 0:00:07]} 38. Ke2 {[%emt 0:02:15]} Ke4 {[%emt 0:00:40]} 39. a4 {[%emt 0:01:21]} a6 {[%emt 0:00:11]} 40. a5 {[%emt 0:00:00]} g4 {[%emt 0:00:00]} 41. Bd8 {[%emt 0:11:31]} Ne5 {[%emt 0:02:10]} 1/2-1/2

[Event "RUS-ch Girls U21 2021"]
[Site "Loo"]
[Date "2021.04.27"]
[Round "7.9"]
[White "Emelyanova, Victoria"]
[Black "Zotova, Anastasia"]
[Result "0-1"]
[ECO "D87"]
[WhiteElo "1765"]
[BlackElo "2160"]
[Annotator "NA"]
[PlyCount "94"]
[EventDate "2021.04.21"]
[EventType "swiss"]
[EventCountry "RUS"]
[SourceTitle "playchess.com"]
[Source "ChessBase"]
[SourceQuality "1"]
[TimeControl "40/5400+30:1800+30"]

1. d4 {[%emt 0:00:00]} Nf6 {[%emt 0:00:00]} 2. c4 {[%emt 0:00:00]} g6 {[%emt 0:00:00]} 3. Nc3 {[%emt 0:00:00]} d5 {[%emt 0:00:00]} 4. cxd5 {[%emt 0:00:00]} Nxd5 {[%emt 0:00:00]} 5. e4 {[%emt 0:00:00]} Nxc3 {[%emt 0:00:00]} 6. bxc3 {[%emt 0:00:00]} Bg7 {[%emt 0:00:05]} 7. Bc4 {[%emt 0:00:12]} O-O {[%emt 0:00:16]} 8. Ne2 {[%emt 0:00:10]} c5 {[%emt 0:00:14]} 9. O-O {[%emt 0:00:14]} Qc7 {[%emt 0:00:27]} 10. Bd3 {[%emt 0:07:46]} Rd8 {[%emt 0:00:49]} 11. Be3 {[%emt 0:02:44]} Nc6 {[%emt 0:01:54]} 12. Rc1 {[%emt 0:03:35]} Qa5 {[%emt 0:01:44]} 13. Bc4 {[%emt 0:07:37]} Ne5 {[%emt 0:00:39]} 14. Bd5 {[%emt 0:04:23]} Ng4 {[%emt 0:02:04]} 15. Bd2 {[%emt 0:08:29]} Nf6 {[%emt 0:06:39]} 16. c4 {[%emt 0:05:47]} Qa6 {[%emt 0:05:59]} 17. dxc5 {[%emt 0:09:27]} e6 {[%emt 0:04:40]} 18. e5 {[%emt 0:02:32]} exd5 {[%emt 0:00:19]} 19. exf6 {[%emt 0:00:25]} Bxf6 {[%emt 0:00:05]} 20. Nc3 {[%emt 0:12:46]} dxc4 {[%emt 0:04:51]} 21. Ne4 {[%emt 0:06:07]} Be5 {[%emt 0:00:44]} 22. Qf3 {[%emt 0:08:31]} Be6 {[%emt 0:10:01]} 23. Bg5 {[%emt 0:08:31]} Rd3 {[%emt 0:00:11]} 24. Qe2 {[%emt 0:00:58]} Bd5 {[%emt 0:04:10]} 25. Rfe1 {[%emt 0:03:56]} Qc6 {[%emt 0:03:46]} 26. Bh6 {[%emt 0:05:07]} Re8 {[%emt 0:06:05]} 27. Ng3 {[%emt 0:03:36]} Re6 {[%emt 0:00:24]} 28. Qg4 {[%emt 0:00:28]} Bb2 {[%emt 0:05:46]} 29. Rcd1 {[%emt 0:00:38]} Qxc5 {[%emt 0:05:23]} 30. Rxe6 {[%emt 0:00:23]} Bxe6 {[%emt 0:00:07]} 31. Qe2 {[%emt 0:00:16]} Rxd1+ {[%emt 0:02:17]} 32. Qxd1 {[%emt 0:00:04]} Bg7 {[%emt 0:04:10]} 33. Ne4 {[%emt 0:00:55]} Qd4 {[%emt 0:00:46]} 34. Qxd4 {[%emt 0:00:46]} Bxd4 {[%emt 0:00:07]} 35. Kf1 {[%emt 0:00:20]} c3 {[%emt 0:01:42]} 36. Ke2 {[%emt 0:00:35]} Bc4+ {[%emt 0:00:07]} 37. Kd1 {[%emt 0:00:17]} Bd5 {[%emt 0:04:15]} 38. Nd6 {[%emt 0:00:46]} a6 {[%emt 0:01:45]} 39. Kc2 {[%emt 0:00:14]} Bxg2 {[%emt 0:01:35]} 40. f4 {[%emt 0:00:00]} f5 {[%emt 0:00:00]} 41. Kd3 {[%emt 0:00:40]} Bf1+ {[%emt 0:04:50]} 42. Kc2 {[%emt 0:00:55]} b5 {[%emt 0:00:13]} 43. Bg5 {[%emt 0:00:26]} Kf8 {[%emt 0:00:40]} 44. Bd8 {[%emt 0:00:18]} Bg2 {[%emt 0:01:40]} 45. Ba5 {[%emt 0:00:20]} Bc5 {[%emt 0:01:07]} 46. Nc8 {[%emt 0:00:14]} b4 {[%emt 0:00:19]} 47. a3 {[%emt 0:00:18]} Be4+ {[%emt 0:00:07]} 0-1

[Event "RUS-ch Girls U21 2021"]
[Site "Loo"]
[Date "2021.04.27"]
[Round "7.10"]
[White "Gelman, Inna"]
[Black "Bogdanova, Darya"]
[Result "1/2-1/2"]
[ECO "D05"]
[WhiteElo "1801"]
[BlackElo "1762"]
[Annotator "NA"]
[PlyCount "90"]
[EventDate "2021.04.21"]
[EventType "swiss"]
[EventCountry "RUS"]
[SourceTitle "playchess.com"]
[Source "ChessBase"]
[SourceQuality "1"]
[TimeControl "40/5400+30:1800+30"]

1. d4 {[%emt 0:00:00]} d5 {[%emt 0:00:02]} 2. Nf3 {[%emt 0:00:00]} Nf6 {[%emt 0:00:05]} 3. e3 {[%emt 0:00:00]} e6 {[%emt 0:00:20]} 4. Bd3 {[%emt 0:00:00]} c5 {[%emt 0:00:30]} 5. b3 {[%emt 0:00:01]} Bd6 {[%emt 0:00:20]} 6. dxc5 {[%emt 0:00:21]} Bxc5 {[%emt 0:00:10]} 7. Bb2 {[%emt 0:00:19]} Nc6 {[%emt 0:00:47]} 8. a3 {[%emt 0:00:29]} O-O {[%emt 0:00:48]} 9. O-O {[%emt 0:00:09]} Re8 {[%emt 0:03:18]} 10. b4 {[%emt 0:03:28]} Bd6 {[%emt 0:00:19]} 11. c4 {[%emt 0:03:09]} dxc4 {[%emt 0:14:22]} 12. Bxc4 {[%emt 0:00:09]} Qc7 {[%emt 0:03:39]} 13. Nc3 {[%emt 0:04:07]} a6 {[%emt 0:01:19]} 14. Rc1 {[%emt 0:01:32]} Ne5 {[%emt 0:14:02]} 15. Nxe5 {[%emt 0:18:38]} Bxe5 {[%emt 0:00:11]} 16. f4 {[%emt 0:00:03]} Bd6 {[%emt 0:13:24]} 17. Qe2 {[%emt 0:14:53]} Qe7 {[%emt 0:08:44]} 18. e4 {[%emt 0:01:48]} Bb8 {[%emt 0:06:18]} 19. e5 {[%emt 0:04:37]} Nd7 {[%emt 0:00:18]} 20. Bd3 {[%emt 0:01:22]} Ba7+ {[%emt 0:01:05]} 21. Kh1 {[%emt 0:00:18]} b5 {[%emt 0:01:39]} 22. Ne4 {[%emt 0:02:26]} Rd8 {[%emt 0:04:25]} 23. Nd6 {[%emt 0:01:04]} Nb6 {[%emt 0:01:34]} 24. Bd4 {[%emt 0:00:47]} Nd5 {[%emt 0:08:05]} 25. Bc5 {[%emt 0:08:02]} Bxc5 {[%emt 0:00:32]} 26. Rxc5 {[%emt 0:00:07]} Bb7 {[%emt 0:04:48]} 27. Be4 {[%emt 0:03:52]} Rab8 {[%emt 0:04:32]} 28. g3 {[%emt 0:01:30]} Ba8 {[%emt 0:00:47]} 29. Rfc1 {[%emt 0:01:07]} g6 {[%emt 0:05:29]} 30. h4 {[%emt 0:03:46]} Kg7 {[%emt 0:00:49]} 31. Kh2 {[%emt 0:00:32]} Rd7 {[%emt 0:01:19]} 32. R1c2 {[%emt 0:02:29]} h6 {[%emt 0:00:47]} 33. Qd2 {[%emt 0:00:25]} Nb6 {[%emt 0:00:46]} 34. Bxa8 {[%emt 0:04:01]} Rxa8 {[%emt 0:00:01]} 35. Qc1 {[%emt 0:00:32]} Nd5 {[%emt 0:00:46]} 36. Rc8 {[%emt 0:01:31]} Rxc8 {[%emt 0:00:25]} 37. Rxc8 {[%emt 0:00:05]} Rd8 {[%emt 0:00:43]} 38. Rc6 {[%emt 0:06:42]} Qa7 {[%emt 0:00:23]} 39. Qc5 {[%emt 0:02:20]} Qa8 {[%emt 0:00:45]} 40. Kg1 {[%emt 0:00:00]} Rb8 {[%emt 0:00:00]} 41. Ne4 {[%emt 0:09:42]} a5 {[%emt 0:03:10]} 42. Nf6 {[%emt 0:02:12]} Rd8 {[%emt 0:06:53]} 43. Qxb5 {[%emt 0:02:59]} axb4 {[%emt 0:04:11]} 44. Ra6 {[%emt 0:07:29]} Qc8 {[%emt 0:01:28]} 45. Rc6 {[%emt 0:01:11]} Qa8 {[%emt 0:02:55]} 1/2-1/2

[Event "RUS-ch Girls U21 2021"]
[Site "Loo"]
[Date "2021.04.28"]
[Round "8.1"]
[White "Afonasieva, Anna"]
[Black "Grigorieva, Yulia"]
[Result "1-0"]
[ECO "A49"]
[WhiteElo "2270"]
[BlackElo "2236"]
[Annotator "RC"]
[PlyCount "77"]
[EventDate "2021.04.21"]
[EventType "swiss"]
[EventCountry "RUS"]
[SourceTitle "playchess.com"]
[Source "ChessBase"]
[SourceQuality "1"]
[TimeControl "40/5400+30:1800+30"]

1. d4 {[%emt 0:00:00]} Nf6 {[%emt 0:00:00]} 2. Nf3 {[%emt 0:00:00]} g6 {[%emt 0:00:00]} 3. g3 {[%emt 0:00:00]} Bg7 {[%emt 0:00:00]} 4. Bg2 {[%emt 0:00:00]} O-O {[%emt 0:00:07]} 5. O-O {[%emt 0:00:00]} d6 {[%emt 0:00:14]} 6. c4 {[%emt 0:00:00]} Nbd7 {[%emt 0:00:14]} 7. Qc2 {[%emt 0:00:01]} e5 {[%emt 0:01:57]} 8. Rd1 {[%emt 0:00:05]} Re8 {[%emt 0:06:09]} 9. Nc3 {[%emt 0:00:41]} c6 {[%emt 0:07:37]} 10. e4 {[%emt 0:00:42]} exd4 {[%emt 0:12:56]} 11. Nxd4 {[%emt 0:00:07]} Ne5 {[%emt 0:01:43]} 12. c5 {[%emt 0:08:14]} dxc5 {[%emt 0:24:16]} 13. Nxc6 {[%emt 0:01:15]} Qc7 {[%emt 0:02:34]} 14. Nxe5 {[%emt 0:00:22]} Qxe5 {[%emt 0:00:22]} 15. Bf4 {[%emt 0:05:18]} Qh5 {[%emt 0:04:04]} 16. Nd5 {[%emt 0:01:38]} g5 {[%emt 0:08:46]} 17. Nxf6+ {[%emt 0:08:51]} Bxf6 {[%emt 0:00:02]} 18. Be3 {[%emt 0:01:12]} Bg4 {[%emt 0:03:38]} 19. Rd5 {[%emt 0:01:09]} Qg6 {[%emt 0:07:17]} 20. Rxc5 {[%emt 0:02:55]} b6 {[%emt 0:01:39]} 21. Rc6 {[%emt 0:02:47]} Bd7 {[%emt 0:04:14]} 22. Rc7 {[%emt 0:05:06]} Be6 {[%emt 0:02:47]} 23. Rd1 {[%emt 0:05:49]} Be5 {[%emt 0:01:05]} 24. Rc6 {[%emt 0:03:06]} Qf6 {[%emt 0:01:06]} 25. Bh3 {[%emt 0:03:19]} h5 {[%emt 0:08:23]} 26. Bxe6 {[%emt 0:04:35]} fxe6 {[%emt 0:00:01]} 27. Rd7 {[%emt 0:04:01]} Rad8 {[%emt 0:01:37]} 28. Qd1 {[%emt 0:03:15]} g4 {[%emt 0:00:29]} 29. Rxe6 {[%emt 0:01:10]} Rxe6 {[%emt 0:00:36]} 30. Rxd8+ {[%emt 0:00:04]} Kg7 {[%emt 0:00:23]} 31. Qd5 {[%emt 0:06:00]} h4 {[%emt 0:00:26]} 32. Rd7+ {[%emt 0:03:10]} Kg6 {[%emt 0:00:36]} 33. gxh4 {[%emt 0:01:07]} Re7 {[%emt 0:00:36]} 34. Qg8+ {[%emt 0:02:26]} Kh5 {[%emt 0:00:22]} 35. Rxe7 {[%emt 0:02:35]} Qxe7 {[%emt 0:00:05]} 36. Bg5 {[%emt 0:00:32]} Qd7 {[%emt 0:00:38]} 37. Qd5 {[%emt 0:01:29]} Qc7 {[%emt 0:00:41]} 38. Bf4 {[%emt 0:00:21]} Qc2 {[%emt 0:00:38]} 39. Qf7+ {[%emt 0:00:27]} 1-0

[Event "RUS-ch Girls U21 2021"]
[Site "Loo"]
[Date "2021.04.28"]
[Round "8.3"]
[White "Stroganova, Karina"]
[Black "Nosacheva, Mariya"]
[Result "0-1"]
[ECO "A01"]
[WhiteElo "1731"]
[BlackElo "2199"]
[Annotator "RC"]
[PlyCount "60"]
[EventDate "2021.04.21"]
[EventType "swiss"]
[EventCountry "RUS"]
[SourceTitle "playchess.com"]
[Source "ChessBase"]
[SourceQuality "1"]
[TimeControl "40/5400+30:1800+30"]

1. b3 {[%emt 0:00:00]} e5 {[%emt 0:01:03]} 2. Bb2 {[%emt 0:00:00]} Nc6 {[%emt 0:00:10]} 3. e3 {[%emt 0:00:34]} d6 {[%emt 0:18:02]} 4. c4 {[%emt 0:10:24]} f5 {[%emt 0:02:10]} 5. f4 {[%emt 0:10:02]} Nf6 {[%emt 0:03:54]} 6. Ne2 {[%emt 0:03:33]} Nb4 {[%emt 0:10:09]} 7. d3 {[%emt 0:03:43]} Ng4 {[%emt 0:02:21]} 8. Qd2 {[%emt 0:01:52]} Nxe3 {[%emt 0:01:55]} 9. Na3 {[%emt 0:01:17]} Nxf1 {[%emt 0:00:16]} 10. Rxf1 {[%emt 0:00:32]} Nc6 {[%emt 0:01:01]} 11. O-O-O {[%emt 0:06:09]} Be7 {[%emt 0:04:15]} 12. d4 {[%emt 0:08:33]} exd4 {[%emt 0:00:45]} 13. Nxd4 {[%emt 0:00:51]} O-O {[%emt 0:00:15]} 14. Nab5 {[%emt 0:04:27]} Nxd4 {[%emt 0:09:21]} 15. Nxd4 {[%emt 0:01:15]} a5 {[%emt 0:00:14]} 16. Rf3 {[%emt 0:05:20]} Bf6 {[%emt 0:02:22]} 17. Re1 {[%emt 0:11:53]} a4 {[%emt 0:04:02]} 18. Ne6 {[%emt 0:03:21]} Bxe6 {[%emt 0:00:09]} 19. Rxe6 {[%emt 0:00:11]} axb3 {[%emt 0:00:53]} 20. axb3 {[%emt 0:07:32]} Bxb2+ {[%emt 0:02:32]} 21. Kxb2 {[%emt 0:00:54]} Kh8 {[%emt 0:02:39]} 22. Qd5 {[%emt 0:01:44]} c6 {[%emt 0:05:53]} 23. Qd2 {[%emt 0:01:45]} d5 {[%emt 0:05:50]} 24. cxd5 {[%emt 0:00:28]} cxd5 {[%emt 0:00:10]} 25. Rd3 {[%emt 0:00:25]} Qc8 {[%emt 0:01:38]} 26. Qe3 {[%emt 0:01:32]} Qd8 {[%emt 0:02:30]} 27. Qd2 {[%emt 0:01:02]} Ra5 {[%emt 0:00:35]} 28. Re5 {[%emt 0:00:17]} Qa8 {[%emt 0:00:11]} 29. Qc3 {[%emt 0:02:13]} Ra1 {[%emt 0:01:17]} 30. Qb4 {[%emt 0:03:23]} Rc8 {[%emt 0:00:26]} 0-1